[Event "Silver Lake Festival 2022"]
[Site "Veliko Gradiste"]
[Date "2022.06.22"]
[Round "5.5"]
[White "Mohammad Nubairshah Shaikh"]
[Black "Tyurin, Artem"]
[Result "1-0"]
[ECO "D02"]
[WhiteElo "2443"]
[BlackElo "2174"]
[Annotator "TA"]
[PlyCount "48"]
[EventDate "2022.06.16"]
[EventType "swiss"]
[EventCountry "SRB"]
[SourceTitle "playchess.com"]
[Source "ChessBase"]
[SourceQuality "1"]
[TimeControl "5400+30"]

{[%evp 9,48,27,30,20,27,22,22,23,27,42,38,29,29,4,0,10,39,32,52,47,52,45,54,65,74,14,70,0,0,0,0,0,197,75,649,642,635,653,619,585,493]} 1. Nf3 {[%emt 0:03:26]} d5 {[%emt 0:00:16]} 2. g3 {[%emt 0:00:20]} Nc6 {[%emt 0:01:28]} 3. d4 {[%emt 0:00:03]} Bf5 {[%emt 0:00:07]} 4. Bg2 {[%emt 0:00:05]} Nb4 {[%emt 0:00:10]} 5. Na3 {[%emt 0:00:02]} e6 {[%emt 0:00:10]} 6. Nh4 {[%emt 0:00:01] D02: 1 d4 d5 2 Nf3 sidelines, including 2...Nf6 3 g3 and 2...Nf6 3 Bf4.} Bg4 {[%emt 0:01:22][%cal Bf5g4,Bg4h5,Bh5g6][%mdl 32]} 7. c3 {[%emt 0:00:13]} Nc6 {[%emt 0:00:06]} 8. Qb3 {[%emt 0:00:05] The position is equal.} Rb8 {[%emt 0:01:03]} 9. e4 {[%emt 0:00:29]} dxe4 {[%emt 0:04:47]} 10. Bxe4 {[%emt 0:00:03]} Be7 {[%emt 0:01:49]} 11. h3 {[%emt 0:04:55]} Bh5 {[%emt 0:13:22]} 12. Qb5 {[%emt 0:00:26][%csl LRc6,LRh5] [#]} Bxh4 $146 {[%emt 0:04:19]} ({Predecessor:} 12... Nf6 13. Bxc6+ bxc6 14. Qxc6+ Nd7 15. Nc4 Bxh4 16. gxh4 O-O 17. Rg1 Qxh4 18. Qxd7 Qxh3 {½-½ (47) Kunin,V (2551)-Stevic,H (2615) Schwarzach 2017}) 13. gxh4 {[%emt 0:25:38]} Nf6 {[%emt 0:07:05]} 14. Bg5 {[%emt 0:00:37] Black must now prevent Bxf6.} Bg6 {[%emt 0:01:32]} 15. Bf3 {[%emt 0:16:20] Hoping for h5.} Qd7 {[%emt 0:16:03]} 16. Bxf6 {[%emt 0:01:28]} gxf6 {[%emt 0:01:06] [#]} 17. O-O-O {[%emt 0:02:44]} (17. h5 $1 $16 {[%cal Rh5g6]}) 17... Qd6 {[%emt 0:04:27]} (17... h5 $11) 18. Qe2 {[%emt 0:08:52] White is more active.} (18. Rd2 $14) 18... Qf4+ $11 {[%emt 0:10:23]} 19. Qe3 {[%emt 0:00:01]} Qxh4 {[%emt 0:02:08]} 20. Rhg1 {[%emt 0:00:03]} h5 $2 {[%emt 0:03:26] [#]} (20... Ne7 $11 {and Black is okay.}) 21. Nb5 {[%emt 0:05:07]} (21. d5 $1 $18 {[%cal Rd5c6]} Ne5 22. dxe6) 21... O-O $2 {[%emt 0:02:49][%mdl 8192] A mistake that costs the game.} (21... Kf8 $16) 22. Qh6 $18 {[%emt 0:07:13] White is clearly winning.} Ne7 {[%emt 0:01:39]} 23. Nxc7 {[%emt 0:00:03]} Qxf2 {[%emt 0:10:50][%csl Gg6][%cal Rf2c2]} 24. Be4 {[%emt 0:12:52][%cal Oc7e6] Against Qc2+. Nxe6! would kill now.} Nf5 {[%emt 0:08:23] Weighted Error Value: White=0.20 (precise) /Black=0.60} 1-0

[Event "Silver Lake Festival 2022"]
[Site "Veliko Gradiste"]
[Date "2022.06.22"]
[Round "5.6"]
[White "Djokic, Mihailo"]
[Black "Damljanovic, Branko"]
[Result "0-1"]
[ECO "B92"]
[WhiteElo "2194"]
[BlackElo "2469"]
[Annotator "TA"]
[PlyCount "68"]
[EventDate "2022.06.16"]
[EventType "swiss"]
[EventCountry "SRB"]
[SourceTitle "playchess.com"]
[Source "ChessBase"]
[SourceQuality "1"]
[TimeControl "5400+30"]

{[%evp 13,68,0,18,5,41,40,42,40,33,38,39,-20,-6,-11,-7,0,0,0,0,0,32,33,30,20,11,6,3,16,31,-3,-3,0,-14,-81,-88,-135,-112,-107,-68,-71,-64,-50,-47,-408,-412,-388,-383,-591,-518,-608,-628,-622,-629,-618,-572,-29996,-29997]} 1. e4 {[%emt 0:00:02]} c5 {[%emt 0:05:24]} 2. Nf3 {[%emt 0:00:04]} d6 {[%emt 0:00:17]} 3. d4 {[%emt 0:00:03]} cxd4 {[%emt 0:00:05]} 4. Nxd4 {[%emt 0:00:02]} Nf6 {[%emt 0:00:07]} 5. Nc3 {[%emt 0:00:02]} a6 {[%emt 0:00:05]} 6. Be2 {[%emt 0:00:02]} e5 {[%emt 0:00:49]} 7. Nf3 {[%emt 0:00:16]} h6 {[%emt 0:00:12]} 8. Nd2 {[%emt 0:00:04] B92: Sicilian Najdorf: 6 Be2.} b5 {[%emt 0:00:31]} 9. a4 {[%emt 0:00:04]} b4 {[%emt 0:00:05]} 10. Nd5 {[%emt 0:00:02] White is slightly better.} Nxd5 {[%emt 0:00:09]} 11. exd5 {[%emt 0:00:01]} a5 {[%emt 0:00:49]} 12. Nc4 {[%emt 0:04:05] [#]} (12. Bb5+ $14 Nd7 13. Nc4) 12... Be7 $146 {[%emt 0:03:05]} ({Predecessor:} 12... Nd7 13. O-O Be7 14. f4 O-O 15. fxe5 Nxe5 16. Be3 Nxc4 17. Bxc4 {0-1 (49) Carmaciu,L (1765)-Voinea,I Sovata 1997}) 13. O-O {[%emt 0:01:33]} O-O {[%emt 0:00:03]} 14. c3 {[%emt 0:06:27]} bxc3 {[%emt 0:08:05]} 15. bxc3 {[%emt 0:00:01]} Ba6 {[%emt 0:00:37]} 16. Na3 {[%emt 0:08:37]} Bg5 {[%emt 0:03:50]} 17. Bb2 $1 {[%emt 0:02:19]} e4 {[%emt 0:02:19]} 18. Bxa6 {[%emt 0:02:30]} Nxa6 {[%emt 0:00:04][%cal Bb8a6,Ba6c7,Bc7d5,Bd5f6][%mdl 32]} 19. Nb5 {[%emt 0:00:24]} Qd7 {[%emt 0:08:13]} 20. Ba3 {[%emt 0:00:30]} Bf4 {[%emt 0:04:08]} 21. Re1 {[%emt 0:14:40]} f5 {[%emt 0:01:11]} 22. f3 {[%emt 0:00:17]} Nc7 {[%emt 0:06:09]} 23. Nd4 {[%emt 0:08:57]} (23. c4 $11) 23... Nxd5 $17 {[%emt 0:11:25]} 24. fxe4 {[%emt 0:07:23]} (24. Nb5 $142 Qc6 25. Qb3) 24... fxe4 {[%emt 0:05:17]} (24... Be3+ $6 25. Kh1 fxe4 26. Qb3 $11) 25. Rxe4 {[%emt 0:00:37]} (25. Qb3 $2 Qf7 26. Ne2 Rab8 $19) 25... Qf7 {[%emt 0:07:12] Black is more active.} ({Don't play} 25... Nxc3 $6 26. Qb3+ d5 27. Rxf4 Rxf4 28. Qxc3 $11) ({But not} 25... Be3+ $6 26. Kh1 $15) 26. Nb5 {[%emt 0:08:43]} Rad8 {[%emt 0:02:45]} 27. Kh1 {[%emt 0:05:48]} Be5 {[%emt 0:02:36] Inhibits Rd4.} 28. Bb2 $2 {[%emt 0:02:35][%mdl 8192] [#] Now White is beyond hope.} ({White should try} 28. Rxe5 $15 dxe5 29. Bxf8 Rxf8 30. Qe2) 28... Nf6 $19 {[%emt 0:01:10]} 29. Re1 {[%emt 0:02:13]} Qg6 {[%emt 0:02:06]} 30. Re2 {[%emt 0:02:48]} (30. h3 {might work better.} Qg3 31. Rxe5 dxe5 32. Qe1) 30... Ng4 {[%emt 0:01:00] aiming for ...Nf2+.} ({Don't go for} 30... Qh5 $2 31. h3 $19) 31. Qd5+ {[%emt 0:00:12]} Kh8 {[%emt 0:00:34]} 32. g3 {[%emt 0:00:11] [#]} Nxh2 $1 {[%emt 0:06:58][%mdl 512]} 33. Rxh2 {[%emt 0:00:21]} Qxg3 {[%emt 0:00:03][%csl Ge5][%cal Rg3h2]} 34. Rh5 {[%emt 0:02:27]} Rf2 {[%emt 0:01:56] Prevents Qg2.  Weighted Error Value: White=0.74/Black=0.07 (flawless)} 0-1

[Event "Silver Lake Festival 2022"]
[Site "Veliko Gradiste"]
[Date "2022.06.22"]
[Round "5.7"]
[White "Krstulovic, Alex"]
[Black "Srdanovic, Jovana"]
[Result "1-0"]
[ECO "A06"]
[WhiteElo "2413"]
[BlackElo "2127"]
[Annotator "TA"]
[PlyCount "157"]
[EventDate "2022.06.16"]
[EventType "swiss"]
[EventCountry "SRB"]
[SourceTitle "playchess.com"]
[Source "ChessBase"]
[SourceQuality "1"]
[TimeControl "5400+30"]

{[%evp 12,157,0,0,0,-13,0,-5,9,0,0,0,18,0,0,0,6,-12,44,45,37,23,27,13,31,9,27,34,36,36,28,45,31,37,36,41,49,-28,-13,-22,-23,-35,-45,-32,6,-113,-110,-104,0,0,0,0,0,0,26,0,0,0,13,8,10,10,101,94,99,46,79,92,211,67,67,67,60,60,116,0,0,0,97,110,161,158,111,89,207,127,131,129,129,91,91,89,89,82,81,63,79,58,58,58,61,0,52,51,303,101,117,52,52,53,53,50,89,89,126,100,104,91,125,125,125,117,126,126,126,125,125,125,125,108,125,125,125,125,125,125,126,126,251,251,29972,29973,29975,29975,29972,29973,29972,29957]} 1. Nf3 {[%emt 0:01:22]} d5 {[%emt 0:03:58]} 2. b3 {[%emt 0:01:02]} Nf6 {[%emt 0:00:56]} 3. Bb2 {[%emt 0:00:08]} Bf5 {[%emt 0:02:24]} 4. e3 {[%emt 0:00:09]} e6 {[%emt 0:00:12]} 5. Be2 {[%emt 0:00:07]} h6 {[%emt 0:00:36]} 6. O-O {[%emt 0:00:14]} Nbd7 {[%emt 0:00:40]} 7. c4 {[%emt 1:30:58]} c6 {[%emt 0:03:48] A06: Réti Opening: 1 Nf3 d5.} 8. d3 {[%emt 0:00:00]} Be7 {[%emt 0:01:46]} 9. Nbd2 {[%emt 0:00:00]} Nc5 {[%emt 0:04:52] The position is equal.} 10. Ne5 {[%emt 0:00:00]} O-O {[%emt 0:07:42]} 11. Ndf3 {[%emt 0:00:00]} a5 {[%emt 0:02:22] [#]} 12. Qc2 $146 {[%emt 0:00:00]} ({Predecessor:} 12. Bc3 Qb6 13. Rb1 Rfd8 14. Qc2 Qa6 15. Rfd1 Bh7 16. Bd4 Rac8 17. Qb2 Qa8 18. Rbc1 {½-½ (64) Ducret,T (2199)-Gonzalez de la Torre,S (2384) France 2005}) 12... Bh7 {[%emt 0:20:11]} 13. Qc3 {[%emt 0:00:00]} Ne8 {[%emt 0:04:35]} 14. cxd5 {[%emt 0:00:00]} f6 {[%emt 0:10:52]} (14... exd5 $11 15. Nd4 Bd6) 15. d6 {[%emt 0:00:00]} (15. dxc6 {is interesting.} fxe5 16. Nxe5 Bd6 17. cxb7 Nxb7 18. Rac1) 15... Bxd6 {[%emt 0:02:06]} 16. Nc4 {[%emt 0:00:00]} Be7 {[%emt 0:00:08]} (16... Nxd3 $2 17. Nxd6 Nxb2 18. Nxe8 $18 (18. Nxb7 Qe7 $18)) 17. e4 {[%emt 0:00:00]} Nc7 {[%emt 0:13:33]} 18. Rad1 {[%emt 0:00:00]} (18. Nxa5 Nb5 19. Qd2 Qxa5 $17) 18... Nb5 {[%emt 0:05:28]} 19. Qc1 {[%emt 0:00:00]} a4 {[%emt 0:00:35]} 20. b4 {[%emt 0:00:00]} Na6 {[%emt 0:00:06]} 21. a3 {[%emt 0:00:00]} c5 {[%emt 0:00:27]} 22. bxc5 {[%emt 0:00:00]} Nxc5 {[%emt 0:00:08][%cal Ba6c5,Bc5e6,Be6d4,Bd4e2][%mdl 32]} 23. Qe3 {[%emt 0:00:00]} Qe8 {[%emt 0:02:27]} 24. Nfd2 {[%emt 0:00:00]} (24. Ncd2 $14) 24... e5 $11 {[%emt 0:01:14]} 25. Nb6 {[%emt 0:00:00]} (25. Rc1 $5 {[%cal Rc4b6]}) 25... Rd8 {[%emt 0:00:41]} 26. Rc1 {[%emt 0:01:13]} Ne6 {[%emt 0:03:14]} 27. Nd5 {[%emt 0:00:01]} Ned4 {[%emt 0:01:12]} 28. Nc7 {[%emt 0:07:26]} (28. Bd1 $11) 28... Nxe2+ {[%emt 0:02:49]} 29. Qxe2 {[%emt 0:00:02] [#]} Qd7 {[%emt 0:00:21]} (29... Nxc7 $1 $17 30. Rxc7 Bd6) 30. Nd5 {[%emt 0:01:10]} Bxa3 {[%emt 0:04:22]} 31. Bxa3 {[%emt 0:00:01]} Nxa3 {[%emt 0:00:01]} 32. Rc7 {[%emt 0:00:09]} Qe6 {[%emt 0:00:59]} 33. Ra1 {[%emt 0:01:12]} Nb5 {[%emt 0:00:19]} 34. Rxb7 {[%emt 0:01:00]} Nd4 {[%emt 0:00:57]} 35. Qd1 {[%emt 0:00:01]} Qa6 {[%emt 0:00:42]} 36. Rc7 {[%emt 0:01:26]} Rf7 {[%emt 0:00:47]} (36... Kh8 $1 $11 37. Nc4 (37. Rxa4 Qxd3 38. h3 Bg8 $17) (37. Qg4 Ne6 $11) 37... Ne6 38. Rxa4 Nxc7 39. Rxa6 Nxa6) 37. Rxf7 $16 {[%emt 0:00:23]} (37. Rxa4 $6 Qxd3 38. Rxf7 Ne2+ 39. Qxe2 (39. Kh1 Kxf7 40. f3 Bg8 $15) 39... Qxe2 $11) (37. Qxa4 Ne2+ 38. Kf1 Qxd3 $11) 37... Kxf7 {[%emt 0:00:03]} 38. Nc4 {[%emt 0:00:35] Pair of Knights!} ({Much worse is} 38. Qxa4 $6 Qxd3 39. Qa2 (39. Qb4 Rd7 $11) 39... Ne6 $11) (38. Rxa4 $16 Qb7 39. f4) 38... Bxe4 {[%emt 0:00:36]} 39. Rxa4 {[%emt 0:00:03]} ({Reject} 39. dxe4 Qxc4 40. Rxa4 Ne2+ 41. Kf1 Ng3+ 42. Kg1 Ne2+ 43. Kf1 Ng3+ 44. Kg1 Ne2+ $11) 39... Ne2+ {[%emt 0:01:06]} (39... Qxa4 $16 40. Qxa4 Bxd5) 40. Qxe2 {[%emt 0:01:02]} (40. Kf1 $18 Bxg2+ 41. Kxg2) 40... Qxa4 $14 {[%emt 0:00:05]} 41. dxe4 {[%emt 0:00:04] The board is on fire.} Qa1+ {[%emt 0:00:27]} 42. Qf1 {[%emt 0:00:02]} Qd4 {[%emt 0:00:11]} (42... Qxf1+ $14 43. Kxf1 Ke6) 43. Qe2 {[%emt 0:01:16]} Qa1+ {[%emt 0:01:00]} 44. Qf1 {[%emt 0:00:01]} Qd4 {[%emt 0:00:06]} 45. Nce3 {[%emt 0:00:59]} Qxe4 {[%emt 0:00:07]} (45... Ra8 $16 {was necessary.} 46. Qe2 Ra1+ 47. Nf1 Qd1) 46. Qb5 $36 {[%emt 0:00:13][%mdl 2048] White is on the roll.} Kg8 {[%emt 0:00:40]} ({Better is} 46... Kg6 47. h3 Kh7) 47. h3 {[%emt 0:00:32]} Ra8 {[%emt 0:00:29]} (47... Kh8 $16) 48. Kh2 {[%emt 0:00:12] Black must now prevent Qb7.} Kh8 {[%emt 0:00:38]} 49. Qd7 {[%emt 0:00:27] And now Nf5 would win.} Qa4 {[%emt 0:00:33]} 50. Qf7 {[%emt 0:00:34] Hoping for Nf5.} Qe8 {[%emt 0:00:08]} 51. Qb7 {[%emt 0:00:52] Strongly threatening Nf5.} Rb8 {[%emt 0:00:18]} 52. Qa7 {[%emt 0:00:19] aiming for Nf5. White is much more active.} Ra8 {[%emt 0:00:21]} 53. Qb6 {[%emt 0:00:21]} Rb8 {[%emt 0:00:06]} 54. Qc5 {[%emt 0:00:04]} Rc8 {[%emt 0:01:26]} 55. Qd6 {[%emt 0:01:03]} Rd8 {[%emt 0:00:10]} 56. Qc5 {[%emt 0:00:44]} Rc8 $1 {[%emt 0:00:12]} 57. Qb4 {[%emt 0:00:01]} e4 $2 {[%emt 0:01:46][%mdl 8192]} (57... Rd8 $1 $14) 58. Qd6 $2 {[%emt 0:00:22]} (58. Ne7 $18 {is the precise move to win.}) 58... Rd8 $16 {[%emt 0:00:29]} 59. Qf4 {[%emt 0:00:46]} (59. Qc5 $16) 59... Qe6 $14 {[%emt 0:00:37]} 60. Nc3 {[%emt 0:00:28]} Re8 {[%emt 0:00:30]} 61. g4 {[%emt 0:01:09]} Qc6 {[%emt 0:00:43] [#]} 62. Ne2 $1 {[%emt 0:00:28]} Re5 {[%emt 0:00:23]} 63. Qg3 {[%emt 0:00:21]} Kh7 {[%emt 0:00:27]} 64. h4 {[%emt 0:00:13][%cal Bh3h4,Bh4h5][%mdl 32]} Qc7 {[%emt 0:00:40]} 65. h5 {[%emt 0:00:36]} Qc5 {[%emt 0:00:34][%cal Oe5h5]} 66. Kg2 {[%emt 0:00:55]} Qb5 {[%emt 0:00:21]} 67. Nf4 {[%emt 0:00:39]} Qb8 {[%emt 0:00:37]} 68. Ng6 {[%emt 0:00:23]} Rb5 {[%emt 0:00:08]} 69. Qxb8 {[%emt 0:00:08]} Rxb8 {[%emt 0:00:01]} 70. Ne7 {[%emt 0:00:08]} Kh8 {[%emt 0:00:13]} 71. N3f5 {[%emt 0:00:49]} Rb3 {[%emt 0:00:19]} 72. Kf1 {[%emt 0:00:36]} Kh7 {[%emt 0:00:14]} 73. Ke2 {[%emt 0:00:11]} Rf3 {[%emt 0:00:42]} 74. Ne3 {[%emt 0:00:27]} Kh8 {[%emt 0:00:18]} (74... Rh3 $16 {might work better.} 75. N7f5 Kg8) 75. Kf1 $18 {[%emt 0:00:07] White threatens Kg2 and mate.} Kh7 $2 {[%emt 0:00:42]} (75... f5 $18 76. N3xf5 Kh7) 76. Kg2 {[%emt 0:00:04] White mates.} Rf4 {[%emt 0:00:25]} 77. Ng6 {[%emt 0:00:04]} Rf3 {[%emt 0:00:03]} 78. Nh4 {[%emt 0:00:03]} Rf4 {[%emt 0:00:07]} 79. Kg3 {[%emt 0:00:04] Weighted Error Value: White=0.26 (precise) /Black=0.26 (precise)} 1-0

[Event "Silver Lake Festival 2022"]
[Site "Veliko Gradiste"]
[Date "2022.06.22"]
[Round "5.8"]
[White "Shoshin, Kirill"]
[Black "Tadic, Stefan"]
[Result "1/2-1/2"]
[ECO "B22"]
[WhiteElo "1938"]
[BlackElo "2358"]
[Annotator "TA"]
[PlyCount "85"]
[EventDate "2022.06.16"]
[EventType "swiss"]
[EventCountry "SRB"]
[SourceTitle "playchess.com"]
[Source "ChessBase"]
[SourceQuality "1"]
[TimeControl "5400+30"]

{[%evp 11,85,0,28,-4,7,-6,-8,0,0,-11,-9,-10,0,0,0,-41,-21,-51,-38,-58,-53,-55,-74,-105,-23,-25,-29,-42,-15,-11,-8,-13,0,-5,-15,-72,-47,-63,-18,-55,-27,-31,0,0,0,0,0,0,431,417,484,451,460,416,423,310,301,317,383,383,382,375,397,400,404,441,430,112,114,118,119,119,112,133,272,121]} 1. e4 {[%emt 0:00:10]} c5 {[%emt 0:01:01]} 2. c3 {[%emt 0:00:05]} d5 {[%emt 0:06:39]} 3. exd5 {[%emt 0:00:03]} Qxd5 {[%emt 0:00:04]} 4. d4 {[%emt 0:00:03]} Nf6 {[%emt 0:00:05]} 5. Nf3 {[%emt 0:00:15]} e6 {[%emt 0:00:03]} 6. Bd3 {[%emt 0:02:29]} Nc6 {[%emt 0:03:34]} 7. Na3 {[%emt 0:04:39] B22: Sicilian: 2 c3.} Qd8 {[%emt 0:06:11][%cal Rc5d4]} (7... cxd4 {keeps more tension.} 8. Nb5 Bd6 9. Bc4 Qe4+) 8. O-O {[%emt 0:03:04]} cxd4 {[%emt 0:02:00]} 9. cxd4 {[%emt 0:03:44] The position is equal.} Be7 {[%emt 0:05:01] [#]} 10. Re1 $146 {[%emt 0:01:58]} ({Predecessor:} 10. Be3 Nb4 11. Be2 O-O 12. Ne5 Bd7 13. Qb3 Be8 14. Nac4 b5 15. Nd2 a5 16. a3 {0-1 (56) Gvetadze,S (2352)-Dzagnidze,N (2429) Tbilisi 2008}) 10... O-O {[%emt 0:00:14]} 11. Nc4 {[%emt 0:00:30]} b6 {[%emt 0:03:48]} 12. a3 {[%emt 0:07:35]} Bb7 {[%emt 0:05:09]} 13. Bc2 {[%emt 0:06:30]} Rc8 {[%emt 0:28:29][%cal Oc6d4]} 14. b3 {[%emt 0:30:26]} Qd5 {[%emt 0:13:59]} 15. Qd3 {[%emt 0:12:41]} Rfd8 {[%emt 0:03:10][%cal Rc6d4]} 16. Bb2 {[%emt 0:02:17]} Qh5 {[%emt 0:02:03]} 17. Rad1 {[%emt 0:02:19]} Bd6 {[%emt 0:02:57]} ({Black should try} 17... Nd5 $17 {...Nf4 is the strong threat.} 18. h3 b5) 18. Nxd6 $11 {[%emt 0:02:07]} Rxd6 {[%emt 0:00:02]} 19. b4 {[%emt 0:04:10]} Rcd8 {[%emt 0:05:12]} 20. h3 {[%emt 0:03:55]} Nd5 {[%emt 0:05:02]} 21. Ne5 {[%emt 0:06:49]} Nf4 {[%emt 0:02:06]} 22. Qe4 {[%emt 0:00:13]} Nxe5 {[%emt 0:00:21][%cal Bc6e5,Be5c4,Bc4a3][%mdl 32]} (22... Nxb4 $2 23. Qxf4 Nxc2 24. g4 Qxh3 25. Qxf7+ Kh8 26. Qxb7 $18) 23. Qxb7 {[%emt 0:02:33]} (23. Qxf4 $11 Nc4 24. Bc1) 23... Nc4 $17 {[%emt 0:02:19]} 24. Ba1 {[%emt 0:00:59]} Nxa3 {[%emt 0:00:23]} 25. Re5 {[%emt 0:00:59]} Qh4 {[%emt 0:00:49]} ({Resist} 25... Qxe5 26. dxe5 Rxd1+ 27. Bxd1 Rxd1+ 28. Kh2 $16) 26. Bb3 {[%emt 0:00:53][%cal Bc2b3,Bb3c4,Bc4b5][%mdl 32]} b5 {[%emt 0:01:26]} (26... Ng6 $5 {[%cal Rg6e5]} 27. Re4 Qh5 $11) 27. Qxa7 {[%emt 0:01:27]} Nc4 {[%emt 0:00:04] Pair of Knights!} 28. Rxb5 {[%emt 0:00:03]} Rd5 {[%emt 0:01:20]} 29. Bxc4 {[%emt 0:01:03] Really sharp!} Rxb5 {[%emt 0:00:26][%mdl 8192]} (29... Qg5 $1 $11 {and Black stays safe.} 30. Bxd5 exd5) 30. Bxb5 $18 {[%emt 0:00:02]} Qg5 {[%emt 0:00:05][%csl Gf4][%cal Rg5g2] [#]} 31. Qb7 {[%emt 0:00:41]} Nxh3+ {[%emt 0:00:55]} 32. Kf1 {[%emt 0:00:03]} Nf4 {[%emt 0:00:09]} 33. g3 {[%emt 0:00:42]} Nd5 {[%emt 0:00:41]} 34. Be2 {[%emt 0:00:26] Prevents Qh5.} h5 {[%emt 0:00:15]} 35. Bb2 {[%emt 0:01:17]} h4 {[%emt 0:00:05]} 36. Bc1 {[%emt 0:00:07]} Qf5 {[%emt 0:00:28] [#] Hoping for ...hxg3.} 37. gxh4 {[%emt 0:01:00]} Qh3+ 38. Kg1 Nc3 {[%emt 0:00:45][%cal Rc3e2]} 39. Re1 {[%emt 0:00:56]} (39. Bh5 $18 {is the precise move to win.} Rf8 40. Re1) 39... Nxe2+ $16 {[%emt 0:00:53]} 40. Rxe2 {[%emt 0:00:02] Threatens to win with Re4.} Rxd4 {[%emt 0:00:02] ( -> ...Rd1+)} 41. Qc8+ {[%emt 0:00:34]} Kh7 {[%emt 0:00:01][%cal Rd4g4]} 42. Qc2+ {[%emt 0:00:00]} g6 {[%emt 0:00:04]} (42... f5 $16 43. Re3 (43. f4 Qg3+ 44. Kf1 Qf3+ 45. Kg1 Qg4+ 46. Kh2 Qxh4+ 47. Kg2 Qg4+ 48. Kh2 Qh5+ 49. Kg2 Qg4+ 50. Kf2 Qh4+ 51. Kg2 Qg4+ $11) 43... Rg4+ 44. Rg3 Rxg3+ 45. fxg3 Qxg3+ 46. Kf1 Qxh4) 43. Re3 {[%emt 0:00:11] Weighted Error Value: White=0.35/Black=0.31} (43. Re4 $18 Qf5 44. f3) 1/2-1/2

[Event "Silver Lake Festival 2022"]
[Site "Veliko Gradiste"]
[Date "2022.06.22"]
[Round "5.9"]
[White "Markovic, Zoran S"]
[Black "Efremov, Vladislav"]
[Result "1/2-1/2"]
[ECO "B29"]
[WhiteElo "2313"]
[BlackElo "2125"]
[Annotator "TA"]
[PlyCount "35"]
[EventDate "2022.06.16"]
[EventType "swiss"]
[EventCountry "SRB"]
[SourceTitle "playchess.com"]
[Source "ChessBase"]
[SourceQuality "1"]
[TimeControl "5400+30"]

{[%evp 20,35,47,47,65,50,49,53,36,12,19,14,23,15,11,6,14,16]} 1. e4 {[%emt 0:00:08]} c5 {[%emt 0:00:04]} 2. Nf3 {[%emt 0:00:08]} Nf6 {[%emt 0:00:44]} 3. e5 {[%emt 0:00:11]} Nd5 {[%emt 0:00:13]} 4. Nc3 {[%emt 0:00:25]} e6 {[%emt 0:00:55]} 5. Nxd5 {[%emt 0:00:17]} exd5 {[%emt 0:00:06]} 6. d4 {[%emt 0:00:20]} Nc6 {[%emt 0:02:14]} 7. dxc5 {[%emt 0:00:14]} Bxc5 {[%emt 0:00:47]} 8. Qxd5 {[%emt 0:00:29]} d6 {[%emt 0:00:33]} 9. exd6 {[%emt 0:01:45]} Qb6 {[%emt 0:00:53]} 10. Qe4+ {[%emt 0:03:19]} Be6 {[%emt 0:01:13]} 11. Qh4 {[%emt 0:00:47]} Bxd6 {[%emt 0:00:18] B29: Sicilian: 2 Nf3 Nf6 (Nimzowitsch Variation).} 12. Be2 {[%emt 0:05:31]} O-O {[%emt 0:00:26]} 13. O-O {[%emt 0:00:27] [#] Bd3 is the strong threat.} Bf5 {[%emt 0:00:30] White is slightly better.} 14. Bd3 {[%emt 0:11:50]} Bxd3 {[%emt 0:00:35]} 15. cxd3 {[%emt 0:00:01] [#]} Bc5 $146 {[%emt 0:00:41]} ({Predecessor:} 15... Be7 16. Qa4 Bc5 17. Bd2 Nd4 18. Nxd4 Bxd4 19. Bc3 Rfd8 20. Rae1 g6 21. Bxd4 Rxd4 {½-½ (41) David,A (2548)-Luther,T (2575) France 2003}) 16. b3 {[%emt 0:17:32]} Nd4 {[%emt 0:08:45]} 17. Nxd4 {[%emt 0:03:03]} Bxd4 {[%emt 0:00:05]} 18. Rb1 $1 {[%emt 0:00:49] Weighted Error Value: White=0.05 (flawless) /Black=0.00 (flawless)} 1/2-1/2